Cogmind - Beta 13 @@@ ROGUE MODE // 2024.03.23 @ 23:09:18 Player: ody Result: Destroyed by Y-45 Defender with Heavy Assault Rifle Performance ------------- Evolutions (1) 500 Regions Visited (3) 600 Robots Destroyed (30) 150 Value Destroyed (765) 765 Prototype IDs (2) 40 Alien Tech Used (0) 0 Bonus (244) 244 TOTAL SCORE: 2299 Bonus ------- Follower Combat Kills 251 Friendly Fire -7 Cogmind --------- Core Integrity 0/400 Matter 295/300 Energy 100/100 System Corruption 0% Temperature Cool (0) Movement Walking (400) Ox4 Location -9/Storage Parts ------- > --- POWER (1) -------- (None) > --- PROPULSION (3) --- Aluminum Leg Aluminum Leg > --- UTILITY (3) ------ Huge Storage Unit > --- WEAPON (2) ------- Shotgun > --- INVENTORY (25) --- Ion Engine Ion Engine Light Treads Light Treads Light Treads Weight Redist. System EM Pulse Gun Heavy EM Pulse Gun Autogun Grenade Launcher Rocket Launcher Mini Grenade Launcher Peak State ------------ > --- POWER ------------ Light Ion Engine > --- PROPULSION ------- Aluminum Leg Aluminum Leg Aluminum Leg > --- UTILITY ---------- Small Storage Unit Large Storage Unit Hardened Light Armor Plating > --- WEAPON ----------- Small Laser Small Laser > --- INVENTORY -------- Ion Engine Ion Engine Ion Engine Light Treads Light Treads Aluminum Leg Aluminum Leg Heat Sink Large Storage Unit Grenade Launcher [Rating: 11] Favorites ----------- Power Ion Engine Engine Ion Engine Propulsion Aluminum Leg Treads Light Treads Leg Aluminum Leg Wheel Compact Wheel Utility Huge Storage Unit Storage Huge Storage Unit Protection Hardened Light Armor Plating Weapon Light Assault Rifle Energy Gun Small Laser Ballistic Gun Light Assault Rifle Launcher Grenade Launcher Build | -11 -10 -9 -9 ------- Run | Yrd Mat Mat Sto Slots Evolved 2 | . . 2 . Power . | . . . . Propulsion 1 | . . 1 . Utility 1 | . . 1 . Weapon . | . . . . Parts Attached 26 | 7 2 14 3 Power 3 | 1 . 2 . Engine 3 | 1 . 2 . Core . | . . . . Reactor . | . . . . Propulsion 8 | 3 . 3 2 Treads 1 | 1 . . . Leg 5 | . . 3 2 Wheel 2 | 2 . . . Hover . | . . . . Flight . | . . . . Utility 5 | 1 1 3 . Device . | . . . . Storage 4 | 1 1 2 . Processor . | . . . . Hackware . | . . . . Protection 1 | . . 1 . Artifact . | . . . . Weapon 10 | 2 1 6 1 Energy Gun 4 | 1 . 3 . Energy Cannon . | . . . . Ballistic Gun 5 | 1 1 2 1 Ballistic Cannon . | . . . . Launcher 1 | . . 1 . Special Weapon . | . . . . Impact Weapon . | . . . . Slashing Weapon . | . . . . Piercing Weapon . | . . . . Special Melee Weapon . | . . . . Unidentified Prototypes . | . . . . Parts Lost 14 | . 1 6 7 Power 2 | . . 1 1 Propulsion 5 | . . 2 3 Utility 1 | . . . 1 Weapon 6 | . 1 3 2 Highest Loss Streak 4 | . 1 4 2 To Critical Strikes 1 | . . . 1 Average Slot Usage (%) 81 | . 88 80 80 Engine 11 | . 14 10 11 Leg 24 | . . 27 28 Wheel 4 | . 28 1 . Storage 13 | . 18 13 11 Protection 7 | . . 8 8 Energy Gun 2 | . 10 3 . Ballistic Gun 17 | . 17 14 21 Naked Turns . | . . . . Heaviest Build 92 | 13 15 92 92 Greatest Support 30 | 26 26 30 30 Greatest Overweight (x) 9 | 1 . 9 4 Average Overweight (x) 1 | . . 2 3 Largest Inventory Capacity 25 | 8 8 25 25 Average Capacity 20 | 6 8 21 25 Most Carried 15 | 5 8 15 14 Average Carried 11 | 3 6 12 13 Final Capacity 25 | 8 8 25 25 Final Carried 14 | 4 8 14 12 Class Distribution -------------------- 69% | Scavenger-Mutant 20% | Mutant 9% | Commander-Mutant Dominant Class ---------------- Mutant | -10/Materials Scavenger-Mutant | -9/Materials Scavenger-Mutant | -9/Storage Resources | -11 -10 -9 -9 ----------- Run | Yrd Mat Mat Sto Matter Collected 606 | 151 119 247 89 Remotely . | . . . . Salvage Created 989 | . 146 550 293 Parts 75 | . 11 42 22 Haulers Intercepted . | . . . . Recyclers Shooed . | . . . . Parts Field Recycled . | . . . . Retrieved Matter . | . . . . Parts Self-Destructed . | . . . . Prevented . | . . . . Kills | -11 -10 -9 -9 ------- Run | Yrd Mat Mat Sto Combat Hostiles Destroyed 25 | . 5 13 7 Guns 24 | . 5 12 7 AOE 1 | . . 1 . Classes Destroyed 6 | . 2 4 . Builder 1 | . . 1 . Recycler 1 | . . 1 . Watcher 3 | . . 2 1 Swarmer 9 | . 3 4 2 Grunt 13 | . 2 8 3 Sentry 3 | . . 1 2 Best Kill Streak 6 | . 3 6 3 Combat Bots Only 4 | . 3 4 3 Max Kills in Single Turn 1 | . 1 1 1 Gunslinging . | . . . . Exploded 1 | . . 1 . Melee . | . . . . Uniques/NPCs Destroyed . | . . . . Combat | -11 -10 -9 -9 -------- Run | Yrd Mat Mat Sto Hostile Shots Fired 230 | . 26 142 62 Missed 70 | . 4 47 19 Damage Taken 1833 | . 214 1062 557 Core 461 | . 58 303 100 Absorbed by Shields . | . . . . Core Remaining (%) 88 | 100 76 . . Volleys Fired 113 | . 14 66 33 Largest 2 | . 2 2 2 Hottest 80 | . 60 80 43 Shots Fired 198 | . 23 115 60 Gun 195 | . 23 112 60 Cannon . | . . . . Launcher 3 | . . 3 . Special . | . . . . Kinetic 152 | . 14 78 60 Thermal 34 | . . 34 . Explosive 3 | . . 3 . Electromagnetic 9 | . 9 . . Robot Hit Streak 10 | . 4 7 10 Robot Miss Streak 5 | . 3 3 5 Penetration Max . | . . . . Secondary Targets 3 | . . 2 1 Max Gunslinging Chain 1 | . . 1 1 Shots Hit Robots 123 | . 14 71 38 Core Hits 62 | . 8 31 23 Critical Kills . | . . . . Critical Parts Destroyed . | . . . . Critical Strikes 1 | . . 1 . Burn 1 | . . 1 . Melee Attacks . | . . . . Impact . | . . . . Slashing . | . . . . Piercing . | . . . . Sneak Attacks . | . . . . Combat Hostiles . | . . . . Follow-up Attacks . | . . . . Damage Inflicted 1440 | . 155 860 425 Guns 1234 | . 155 659 420 Cannons . | . . . . Explosions 201 | . . 201 . Melee . | . . . . Ramming 5 | . . . 5 Kinetic 927 | . 75 432 420 Thermal 227 | . . 227 . Explosive 201 | . . 201 . Electromagnetic 80 | . 80 . . Impact . | . . . . Slashing . | . . . . Piercing . | . . . . Highest Corruption 5 | . 5 . . Average Corruption 2 | . 2 . . Corruption Purged . | . . . . Corruption Blocked . | . . . . Effects 1 | . 1 . . Data Loss (minor) 1 | . 1 . . Overload Shots . | . . . . Overflow Damage 9 | . . 9 . Projectiles . | . . . . Explosions 9 | . . 9 . Melee . | . . . . Knockbacks . | . . . . Impact . | . . . . Kinetic . | . . . . Secondary . | . . . . Self-Inflicted Damage . | . . . . Shots . | . . . . Rammed . | . . . . Targets Rammed 1 | . . . 1 Kicked 1 | . . . 1 Crushed . | . . . . Highest Temperature 207 | . 100 207 47 Average Temperature 36 | . 56 38 17 Received Heat Transfer 798 | . 69 483 246 Siege Activations . | . . . . Robots Corrupted . | . . . . Combat Hostiles . | . . . . Parts Fried . | . . . . Impact Corruptions . | . . . . Robots Melted . | . . . . Combat Hostiles . | . . . . Parts Melted 1 | . . 1 . Heat Transferred 634 | . . 634 . Parts Sabotaged . | . . . . Parts Stolen . | . . . . Parts Stripped . | . . . . Power Chain Reactions . | . . . . Alert | -11 -10 -9 -9 ------- Run | Yrd Mat Mat Sto Peak Influence 311 | . 110 311 220 Initial 46 | . . 46 42 Average 116 | . 47 144 109 Maximum Alert Level 1 | . . 1 1 Low Security (%) 83 | 100 100 75 87 Level 1 16 | . . 24 12 Level 2 . | . . . . Level 3 . | . . . . Level 4 . | . . . . Level 5 . | . . . . High Security . | . . . . Max Security . | . . . . Squads Dispatched 9 | . . 4 5 Investigation 3 | . . 2 1 Extermination . | . . . . Reinforcement 3 | . . 2 1 Assault . | . . . . Garrison 3 | . . . 3 Intercept . | . . . . Searches Triggered . | . . . . Construction Impeded . | . . . . Haulers Reinforced . | . . . . Active Scanning Responses . | . . . . Cargo Convoy Interrupts . | . . . . Stealth | -11 -10 -9 -9 --------- Run | Yrd Mat Mat Sto Distress Signals 1 | . . 1 . Communications Jammed . | . . . . Distress Signals . | . . . . Times Spotted 41 | . 5 16 20 Peak Tracking Total 5 | . 3 5 4 Tactical Retreats . | . . . . Traps | -11 -10 -9 -9 ------- Run | Yrd Mat Mat Sto Traps Triggered 4 | . 4 . . Indirectly . | . . . . Trap Hack Attempts . | . . . . Triggered . | . . . . Disarmed . | . . . . Reprogrammed . | . . . . Reused . | . . . . Traps Extracted . | . . . . Installed . | . . . . Triggered . | . . . . Machines | -11 -10 -9 -9 ---------- Run | Yrd Mat Mat Sto Machines Disabled . | . . . . Max in Single Turn . | . . . . Machines Repaired . | . . . . Machines Dismantled . | . . . . Machines Sabotaged . | . . . . Overloaded Fab Kills . | . . . . Hacking | -11 -10 -9 -9 --------- Run | Yrd Mat Mat Sto Machines Accessed 8 | . 1 4 3 Terminals 7 | . 1 3 3 Fabricators . | . . . . Repair Stations . | . . . . Recycling Units . | . . . . Scanalyzers 1 | . . 1 . Garrison Access . | . . . . Total Hacks 23 | . 3 9 11 Successful 19 | . 3 8 8 Failed 4 | . . 1 3 Catastrophic . | . . . . Database Lockouts . | . . . . Manual . | . . . . Terminals 21 | . 3 7 11 Fabricators . | . . . . Repair Stations . | . . . . Recycling Units . | . . . . Scanalyzers 2 | . . 2 . Garrison Access . | . . . . Terminal Hacks 17 | . 3 6 8 Record 14 | . 3 5 6 Robot Analysis 1 | . . . 1 Prototype ID Bank 1 | . . . 1 Locate Traps 1 | . . 1 . Fabricator Hacks . | . . . . Repair Station Hacks . | . . . . Recycling Unit Hacks . | . . . . Scanalyzer 2 | . . 2 . Insert Component 1 | . . 1 . Analyze 1 | . . 1 . Garrison Access Hacks . | . . . . Unauthorized Hacks . | . . . . Terminals . | . . . . Fabricators . | . . . . Repair Stations . | . . . . Recycling Units . | . . . . Scanalyzers . | . . . . Garrison Access . | . . . . Data Cores Recovered . | . . . . Used . | . . . . Hacking Detections 6 | . 1 3 2 Full Trace Events 2 | . . 1 1 Feedback Events . | . . . . Feedback Blocked . | . . . . Robot Schematics Acquired . | . . . . Robots Built . | . . . . Authchips . | . . . . Time . | . . . . Total Robot Build Rating . | . . . . Part Schematics Acquired 1 | . . 1 . Parts Built . | . . . . Authchips . | . . . . Time . | . . . . Total Part Build Rating . | . . . . Parts Repaired . | . . . . Time . | . . . . Parts Recycled . | . . . . Recycled Matter . | . . . . Retrieved Matter . | . . . . Retrieved Components . | . . . . Parts Scanalyzed 1 | . . 1 . Part Schematics Acquired 1 | . . 1 . Parts Damaged . | . . . . Bothacking | -11 -10 -9 -9 ------------ Run | Yrd Mat Mat Sto Used RIF Installer . | . . . . Robots Hacked . | . . . . Non-combat . | . . . . Combat . | . . . . Robot Hacks Applied . | . . . . Relay Couplers Released . | . . . . Fabnet Peak Effective % . | . . . . Robots Rewired . | . . . . Allies Hacked . | . . . . Hacks Repelled . | . . . . Allies | -11 -10 -9 -9 -------- Run | Yrd Mat Mat Sto Total Allies 10 | . . . 10 Largest Group 10 | . . . 10 Highest-Rated Group 88 | . . . 88 Highest-Rated Ally 16 | . . . 16 Total Orders . | . . . . Ally Attacks 47 | . . . 47 Total Damage 412 | . . . 412 Kills 9 | . . . 9 Allies Corrupted . | . . . . Allies Melted . | . . . . Intel | -11 -10 -9 -9 ------- Run | Yrd Mat Mat Sto Robot Analysis Total 1 | . . . 1 Derelict Logs Recovered . | . . . . Drone Launches . | . . . . Drone Recoveries . | . . . . Exploration | -11 -10 -9 -9 ------------- Run | Yrd Mat Mat Sto Turns Passed 2148 | 45 273 1024 806 Spaces Moved 791 | 40 255 304 192 Core 25 | 22 . 3 . Treads . | . . . . Legs 443 | . . 251 192 Wheels 323 | 18 255 50 . Hover . | . . . . Flight . | . . . . Fastest Speed 50 | 50 90 90 260 Average Speed 222 | 75 90 270 351 Slowest Speed 500 | 100 90 500 400 Overloaded Moves . | . . . . Propulsion Burnouts . | . . . . Robots Hopped . | . . . . Cave-ins Triggered . | . . . . Exploration Rate (%) 31 | 3 47 36 41 Regions Visited 3 Branch Regions 1 Pre-discovered Areas . | . . . . Known Exits Taken . | . . . . Unknown Exits Taken 3 | 1 1 1 . Scrap Searched . | . . . . Spaces Dug . | . . . . Terrain Destroyed 12 | . . 12 . Melee . | . . . . Projectile . | . . . . AOE 12 | . . 12 . Terrain Rammed . | . . . . Walls Destroyed . | . . . . Machines Disabled . | . . . . Actions | -11 -10 -9 -9 --------- Run | Yrd Mat Mat Sto Total 1012 | 51 278 410 273 Wait 43 | . . . 43 Move 788 | 39 254 303 192 Hop . | . . . . Pick Up 31 | 5 6 19 1 Fast Attach 7 | 5 1 1 . Attach 16 | 1 1 11 3 Detach 1 | . . 1 . Swap 3 | 1 . 2 . Drop 9 | . 2 7 . Fire 113 | . 14 66 33 Melee . | . . . . Ram . | . . . . Kick 1 | . . . 1 Crush . | . . . . Escape Stasis . | . . . . Rewire . | . . . . Trap . | . . . . Miscellaneous . | . . . . Route ------- -11/Scrapyard -10/Materials (discovered 2 exits: *Mat / [*Min]) -9/Materials (discovered 3 exits: [*Mat] / [*Min] / *Sto) -9/Storage History --------- Turn | Location | Event 15 | -11/Scrapyard | Discovered new exit (range 15) 46 | -11/Scrapyard | Entered Materials 131 | -10/Materials | Discovered new exit (range 16) 267 | -10/Materials | Discovered new exit (range 10) 312 | -10/Materials | Build established: Mutant 319 | -10/Materials | Entered another Materials area 319 | -9/Materials | Evolved 2 slots: Propulsion x1, Utility x1 430 | -9/Materials | Lost 4 parts (1p2n1w) 449 | -9/Materials | Core integrity fell below 50% 466 | -9/Materials | Discovered new exit (range 12) 506 | -9/Materials | Met 8R-AWN 672 | -9/Materials | Discovered new exit (range 9) 747 | -9/Materials | Build established: Scavenger-Mutant 1044 | -9/Materials | Discovered new exit (range 16) 1343 | -9/Materials | Entered Storage 1391 | -9/Storage | Assisted by bots powering up and referring to "LRC-V3" 1479 | -9/Storage | Lost 3 allies 1934 | -9/Storage | Garrison activated, responded to threat 1942 | -9/Storage | Core integrity fell below 20% 2149 | -9/Storage | Destroyed by Y-45 Defender with Heavy Assault Rifle Last Messages --------------- filtered down to these levels, and older robot variants are responsible for their oversight and maintenance. >>Query(Solar System) Comprises the G-class Sun and its planetary system of eight planets, including [Earth], the origin of [Human] civilization. Many of the system's planets and moons were colonized to some degree during the 2070-2110 push for colonization to alleviate [Human] civilization's growing toll on [Earth]'s resources. K-01 Serf collects debris. R-06 Scavenger collects Lgt. Ion Engine. K-01 Serf collects debris. R-06 Scavenger collects Flight Unit. K-01 Serf collects debris. Ion Engine destroyed. Critical hit (Destroy). Lgt. Assault Rifle destroyed. Map ----- +----------------------------------------------------+ | | | | | | | | | | | | | | | | | | | ??????????????????????????????????????? | | ????????????????????????###???????????? | | ??????????#?????????????"""???????????? | | ??????????# ???????????#"Y"#??????????? | | ??????????# ??????????? ??????????? | | ??????????# ????????? ????????? | | ??????????# ????????# #???????? | | ??????????# ????????# #???????? | | ??????????# ""??????# """ """ #???????? | | ??????????# ""?????# """ """ #???????? | | #?????????# """" #? """ """ ??? #???? | | #?????????# #??? ???? #???? | | ############+##+#########+##### #???? | | #% k #???? | | +%% #???? | | # #???? | | # #######+############@#########???? | | # #??# % ###??? ??????????? | | # #??# [%^"" ""#?# ????????? | | # % #??# G" T"#?# #???????? | | # #??# "" ""#?#""" #???????? | | #??# ###?#""" #???????? | | #+##/#??# """ #???#""" #???????? | | [#?# """ #???#""" [ #???????? | | """"%""# """ #??????" #???????? | | """"*Y"# #?????? #???????? | | """"%""##+?######??????#####Y#???????? | | """"[#### ??????????????????##???????? | | ?%#???????????????????????????????? | | #????##???????????????????????????????? | | ??????????????????????????????????????? | | ??????????????????????????????????????? | | ??????????????????????????????????????? | | ??????????????????????????????????????? | | ??????????????????????????????????????? | | ??????????????????????????????????????? | | ??????????????????????????????????????? | | ??????????????????????????????????????? | | ??????????????????????????????????????? | | ??????????????????????????????????????? | | ??????????????????????????????????????? | +----------------------------------------------------+ Best States ------------- Heat Dissipation 28 Energy Generation 10 Energy Capacity 250 Matter Stores 300 Matter Capacity 400 Sight Range 16 Terrain Scan Density 10 Armor Coverage 150 Evasion (%) 50 Item Schematics ----------------- Heat Sink | -9/Materials | Scanalyzed Robot Schematics ------------------ None Fabricated ------------ Nothing Alien Tech Used ----------------- None Achievements -------------- Safety First Challenges ------------ None Game ------ Seed SystemSuspensionThrower Manual? 0 Play Time 00:22:16 Cumulative 7.8 hours Start 2024.03.23 @ 22:51:26 End 2024.03.23 @ 23:09:18 Sessions 1 Manual Loads 0 Difficulty Rogue Special Mode None Game No. 31 Rogue 31 Adventurer 0 Explorer 0 Win Type - Total 0 Types 0/0/0/0/0/0/0/0/0 Lore% 4 Gallery% 12 Achievement% 10 Wizard Run 0 Options --------- Layout 1 ASCII 0 Keyboard 0 Movement Mouse Keybinds 0 Fullscreen 2 Font 24/Smallcaps Map View 25x21 Zoom Use 99% Tactical HUD 0 Map Filters NONE Filters NONE Steam 1 RUN: 282c717f-f4a6-45d8-b6ab-870cd52f319e